fUSD/lending_fUSD_20240403
["ID","MTS","AMOUNT","RATE_DAILY","PERIOD"]
[321397403,1712129438660,-467.20584352,0.000249,2]
[321397404,1712129438669,-449.53431196,0.000249,2]
[321397405,1712129438679,-1323.99021766,0.000249,2]
[321397406,1712129438689,-268.39815212,0.000249,2]
[321397407,1712129438699,-167.08182948,0.000249,2]
[321397408,1712129438708,-269.01549617,0.0002499,2]
[321397409,1712129438718,-269.01549617,0.0002499,2]
[321397410,1712129438728,-269.01549617,0.0002499,2]
[321397411,1712129438737,-155.0,0.00024993,2]
[321397412,1712129438748,-354.73932104,0.00024993,2]
[321397413,1712129438757,-1480.92456095,0.00024994,2]
[321397415,1712129438767,-302.72829268,0.00024997,2]
[321397417,1712129438776,-400.0,0.00024998,2]
[321397418,1712129438785,-155.0,0.00024998,2]
[321397419,1712129438794,-210.52556995,0.00024998,2]
[321397420,1712129438803,-745.79692441,0.00024998,2]
[321397421,1712129438812,-198.48421778,0.00024998,2]
[321397422,1712129438821,-1047.82673448,0.00024998,2]
[321397423,1712129438832,-668.8990073,0.00024998,2]
[321397424,1712129438841,-3369.98331049,0.00024998,2]
[321397425,1712129438851,-1536.9548864,0.00024998,2]
[321397426,1712129438860,-320.27750519,0.00024998,2]
[321397427,1712129438871,-2360.96379484,0.00024998,2]
[321397428,1712129438880,-689.82673336,0.00024998,2]
[321397429,1712129438890,-312.61696763,0.00024998,2]
[321397430,1712129438899,-856.59883977,0.00024998,2]
[321397431,1712129438909,-307.2294722,0.00024998,2]
[321397432,1712129438919,-156.90238505,0.00024998,2]
[321397433,1712129438929,-13588.18002459,0.00024998,2]
[321397434,1712129438938,-268.14558605,0.00024998,2]
[321397435,1712129438948,-156.05515436,0.00024998,2]
[321397436,1712129438957,-481.99994592,0.00024998,2]
[321397437,1712129438967,-1220.62658197,0.00024998,2]
[321397438,1712129438977,-214.5273441,0.00024998,2]
[321397439,1712129438986,-200.0,0.00024998,2]
[321397440,1712129438996,-1793.80356496,0.00024998,2]
[321397441,1712129439005,-233.60740397,0.00024998,2]
[321397442,1712129439014,-284.23022734,0.00024998,2]
[321397443,1712129439026,-155.0,0.00024998,2]
[321397444,1712129439035,-155.52918045,0.00024998,2]
[321397445,1712129439045,-174.62254514,0.00024998,2]
[321397446,1712129439055,-3854.39454608,0.00024998,2]
[321397447,1712129439064,-13683.57497961,0.00024998,2]
[321397448,1712129439073,-5696.02733004,0.00024998,2]
[321397449,1712129439083,-20285.24549693,0.00024998,2]
[321397450,1712129439092,-273.07511644,0.00024998,2]
[321397451,1712129439102,-211.12448875,0.00024998,2]
[321397452,1712129439111,-325.44996838,0.00024998,2]
[321397453,1712129439121,-150.01,0.00024999,2]
[321397454,1712129439130,-1720.74145654,0.00024999,2]
[321397455,1712129439139,-8694995.11093334,0.00025,2]
[321397456,1712129439149,-2841.85890817,0.00025,2]
[321397457,1712129439158,-633.4,0.00025,2]
[321397458,1712129439168,-163.42,0.00025,2]
[321397459,1712129439178,-155.37739819,0.00025,2]
[321397460,1712129439187,-2044940.1370938,0.00025,2]
[321397461,1712129439197,-1075934.32022611,0.00025,2]
[321397462,1712129439218,-6178.51938692,0.00025,2]
[321397463,1712129439238,-373.08992,0.00025,2]
[321397464,1712129439490,-661930.53065912,0.00025,2]
[321397470,1712129440619,-1384.38202857,0.00024893,2]
[321397471,1712129440630,-1939.95337151,0.00025,2]
[321397521,1712129443385,-192.1345,0.00024795,2]
[321397522,1712129443396,-150.01,0.00024999,2]
[321397523,1712129443405,-667.77168065,0.00024999,2]
[321397524,1712129443610,-981.2722152,0.00024999,2]
[321397525,1712129443620,-5042.15304567,0.00025,2]
[321397539,1712129446573,-147.83353058,0.00024999,2]
[321397540,1712129446586,-18078.27364523,0.00024999,2]
[321397541,1712129446605,-1212.02592598,0.00024999,2]
[321397542,1712129446614,-506.65292224,0.00025,2]
[321397543,1712129446637,-307.44854805,0.00025,2]
[321397544,1712129446648,-304.61412016,0.00025,2]
[321397557,1712129647467,2070.21901859,0.00025,10]
[321397564,1712129747445,550.0,0.00025,3]
[321397565,1712129748569,600.0,0.00027,3]
[321397568,1712129832764,3186.07530914,0.00032,120]
[321397571,1712129856184,265.62,0.00022176,2]
[321397573,1712130074560,512.0,0.00023967,2]
[321397574,1712130090210,538.01,0.00023967,2]
[321397575,1712130126238,569.86,0.00023992,2]
[321397576,1712130168007,374.09,0.00023905,2]
[321397578,1712130244354,2336.05,0.00023905,2]
[321397579,1712130247945,173.03209983,0.00023762,2]
[321397580,1712130258380,6333.68076913,0.00023947,2]
[321397581,1712130258403,3017.06923087,0.00023947,2]
[321397582,1712130341807,252.33,0.00022111,2]
[321397584,1712130452269,-500.0,0.00024146,2]
[321397585,1712130452291,-168.44,0.00024147,2]
[321397586,1712130452310,-1383.39,0.00024201,2]
[321397587,1712130452333,-266.72,0.00024239,2]
[321397588,1712130452352,-155.53166687,0.00024297,2]
[321397589,1712130452375,-168.44,0.00024357,2]
[321397590,1712130452397,-252.33,0.00024375,2]
[321397591,1712130452417,-252.35542732,0.00024545,2]
[321397592,1712130452437,-168.44,0.00024567,2]
[321397593,1712130452459,-162.11459384,0.00024695,2]
[321397594,1712130452480,-499.99,0.00024695,2]
[321397595,1712130452501,-168.44,0.00024776,2]
[321397596,1712130452521,-70.03931262,0.00024781,2]
[321397609,1712130631524,-500.0,0.00024627,2]
[321397610,1712130631534,-269.0,0.00024628,2]
[321397611,1712130631545,-150.51463,0.0002475,2]
[321397612,1712130631554,-355.60752616,0.00024781,2]
[321397613,1712130631563,-150.0,0.00024792,2]
[321397614,1712130631573,-362.72097033,0.00024793,2]
[321397615,1712130631582,-498.64572296,0.00024793,2]
[321397616,1712130631591,-260.60691398,0.00024793,2]
[321397617,1712130631601,-273.63799124,0.00024793,2]
[321397618,1712130631610,-217.62871005,0.00024793,2]
[321397619,1712130631620,-1760.45808194,0.00024793,2]
[321397620,1712130631690,-337.49473526,0.00024793,2]
[321397621,1712130631700,-291.33670095,0.00024793,2]
[321397622,1712130631709,-155.61488966,0.00024793,2]
[321397623,1712130631719,-41.06338818,0.00024793,2]
[321397679,1712130637577,-263.56669827,0.00024793,2]
[321397681,1712130637586,-180.51744543,0.00024793,2]
[321397682,1712130637596,-155.0,0.00024793,2]
[321397683,1712130637605,-2142.90839151,0.00024793,2]
[321397684,1712130637615,-522.1815077,0.00024793,2]
[321397686,1712130637624,-396.45024351,0.00024793,2]
[321397687,1712130637634,-24126.1941,0.00024795,2]
[321397688,1712130637644,-8337.9596,0.00024795,2]
[321397689,1712130637653,-5320.9024,0.00024795,2]
[321397690,1712130637663,-200.0,0.00024799,2]
[321397691,1712130637672,-800.0,0.00024799,2]
[321397692,1712130637682,-500.0,0.00024799,2]
[321397693,1712130637692,-500.0,0.00024799,2]
[321397694,1712130637702,-500.0,0.000248,2]
[321397695,1712130637712,-200.0,0.000248,2]
[321397696,1712130637721,-800.0,0.000248,2]
[321397697,1712130637731,-800.0,0.000248,2]
[321397698,1712130637741,-500.0,0.000248,2]
[321397699,1712130637750,-500.0,0.000248,2]
[321397700,1712130637760,-500.0,0.000248,2]
[321397701,1712130637770,-500.0,0.000248,2]
[321397702,1712130637781,-555.8582,0.000249,2]
[321397703,1712130637791,-4791.5515,0.000249,2]
[321397704,1712130637803,-7500.0,0.000249,2]
[321397705,1712130637817,-832.80317571,0.000249,2]
[321397706,1712130637827,-295.3533081,0.000249,2]
[321397707,1712130637837,-499.99,0.000249,2]
[321397708,1712130637846,-673.1,0.000249,2]
[321397709,1712130637857,-171.40348199,0.000249,2]
[321397710,1712130637867,-196.8993459,0.000249,2]
[321397711,1712130637876,-312.79785125,0.000249,2]
[321397712,1712130637885,-273.6618089,0.000249,2]
[321397713,1712130637897,-987.9468,0.000249,2]
[321397714,1712130637907,-5484.89714286,0.0002495,2]
[321397715,1712130637916,-168.44,0.00024986,2]
[321397716,1712130637926,-185.97,0.0002499,2]
[321397717,1712130637936,-185.97,0.0002499,2]
[321397718,1712130637946,-185.97,0.0002499,2]
[321397719,1712130637956,-163.43767918,0.00024998,2]
[321397720,1712130637966,-171.08938287,0.00024998,2]
[321397721,1712130637975,-615.67123681,0.00024998,2]
[321397722,1712130637984,-155.95027307,0.00024998,2]
[321397723,1712130637994,-280.89112886,0.00024998,2]
[321397724,1712130638003,-150.01,0.00024999,2]
[321397725,1712130638014,-1580.33373352,0.00024999,2]
[321397726,1712130638024,-7491.19804289,0.00024999,2]
[321397727,1712130638033,-544.17307202,0.00024999,2]
[321397728,1712130638042,-3042467.46607595,0.00025,2]
[321397729,1712130638119,-3824.9943578,0.00025,2]
[321397735,1712130639696,-302.0,0.00025,2]
[321397736,1712130639809,-1350.427572,0.00025,2]
[321397737,1712130639863,-379.59999999,0.00025,2]
[321397738,1712130639875,-302.03405647,0.00025,2]
[321397784,1712130651586,260.18428435,0.00022499,2]
[321397794,1712130968006,1000.0,0.000239,2]
[321397795,1712131344778,5239.93498463,0.00041839,30]
[321397797,1712131533419,150.0,0.00024999,10]
[321397798,1712131537431,287.47,0.00022012,2]
[321397799,1712131539181,500.0,0.00023929,2]
[321397800,1712131564870,178.8,0.00023922,10]
[321397801,1712131565072,178.8,0.00026267,10]
[321397802,1712131566893,269.0,0.00023922,2]
[321397803,1712131572901,550.0,0.00025,3]
[321397804,1712131573976,600.0,0.00027,3]
[321397805,1712131602796,590.4,0.00023914,2]
[321397806,1712131631910,200.0,0.000241,8]
[321397807,1712131633684,500.0,0.000242,8]
[321397808,1712131635784,700.0,0.000243,8]
[321397809,1712131636228,-168.44,0.00024094,2]
[321397810,1712131636249,-500.0,0.00024274,2]
[321397811,1712131636274,-287.47,0.00024275,2]
[321397812,1712131636296,-160.3,0.00024531,2]
[321397813,1712131636317,-150.51463,0.0002475,2]
[321397814,1712131636338,-156.59183349,0.00024798,2]
[321397815,1712131636358,-500.0,0.000248,2]
[321397816,1712131636379,-156.59183347,0.00024808,2]
[321397817,1712131636400,-156.59183347,0.00024818,2]
[321397818,1712131636424,-156.59183347,0.00024829,2]
[321397819,1712131636444,-156.59183347,0.00024839,2]
[321397820,1712131636464,-499.99,0.00024839,2]
[321397821,1712131636484,-156.59183347,0.00024849,2]
[321397822,1712131636504,-571.50142286,0.00024854,2]
[321397823,1712131637867,1000.0,0.000244,8]
[321397824,1712131639954,1200.0,0.000245,8]
[321397825,1712131642343,200.0,0.000246,8]
[321397826,1712131644128,200.0,0.000247,9]
[321397827,1712131646330,200.0,0.000248,9]
[321397828,1712131648608,200.0,0.000249,9]
[321397829,1712131752064,440.86588964,0.000249,9]
[321397846,1712131832142,-590.7,0.0002414,2]
[321397847,1712131832156,-500.0,0.00024231,2]
[321397848,1712131832165,-109.3,0.00024232,2]
[321397853,1712131832253,-1840.64,0.00024232,2]
[321397854,1712131832263,-150.0,0.00024638,2]
[321397855,1712131832272,-731.27857714,0.00024854,2]
[321397856,1712131832282,-156.59183347,0.00024859,2]
[321397857,1712131832291,-156.59183347,0.00024869,2]
[321397858,1712131832301,-156.59183347,0.0002488,2]
[321397859,1712131832311,-156.59183347,0.0002489,2]
[321397860,1712131832320,-462.04065755,0.00024893,2]
[321397861,1712131832330,-462.04065752,0.00024894,2]
[321397862,1712131832340,-462.04065752,0.00024895,2]
[321397863,1712131832349,-462.04065752,0.00024895,2]
[321397864,1712131832358,-462.04065752,0.00024896,2]
[321397865,1712131832366,-462.04065752,0.00024897,2]
[321397866,1712131832376,-462.04065752,0.00024898,2]
[321397867,1712131832385,-404.93832822,0.00024898,2]
[321397868,1712131832395,-155.84175513,0.00024898,2]
[321397869,1712131832405,-798.66694378,0.00024898,2]
[321397870,1712131832414,-462.04065752,0.00024898,2]
[321397871,1712131832423,-500.0,0.00024899,2]
[321397872,1712131832433,-462.04065752,0.00024899,2]
[321397873,1712131832442,-6697.48608651,0.000249,2]
[321397874,1712131832462,-97352.55481349,0.000249,2]
[321397875,1712131832471,-1532.0212,0.000249,2]
[321397876,1712131832481,-156.59183347,0.000249,2]
[321397877,1712131832490,-7500.0,0.000249,2]
[321397878,1712131832500,-10300.54751693,0.000249,2]
[321397879,1712131832510,-6778.60575624,0.000249,2]
[321397880,1712131832519,-462.04065752,0.000249,2]
[321397881,1712131832528,-547.3236178,0.000249,2]
[321397883,1712131832538,-22021.7875524,0.00024993,2]
[321397885,1712131832546,-1838.89999936,0.00024993,2]
[321397887,1712131832558,-314.80022432,0.00024993,2]
[321397890,1712131832578,-255.97559429,0.00024993,2]
[321397894,1712131832609,-333.00794755,0.00024993,2]
[321397897,1712131832628,-1672.77186781,0.00024993,2]
[321397900,1712131832645,-827.1,0.00024993,2]
[321397992,1712131837638,-910.34135407,0.00024993,2]
[321397993,1712131837648,-200.0,0.00024998,2]
[321397994,1712131837658,-1200.0,0.00024999,2]
[321397995,1712131837667,-251.449923,0.00024999,2]
[321397996,1712131837676,-1514.48649463,0.00024999,2]
[321397997,1712131837686,-100000.0,0.00025,2]
[321397998,1712131837696,-100000.0,0.00025,2]
[321397999,1712131837705,-100000.0,0.00025,2]
[321398000,1712131837714,-526696.53675308,0.00025,2]
[321398001,1712131837724,-163.42,0.00025,2]
[321398002,1712131837733,-155.37739819,0.00025,2]
[321398003,1712131837743,-633.39,0.00025,2]
[321398004,1712131837751,-2210742.46415298,0.00025,2]
[321398035,1712131840184,-1451.38289068,0.00024999,2]
[321398036,1712131840194,-37137.04192299,0.00025,2]
[321398037,1712131840207,-25338.62428046,0.00025,2]
[321398038,1712131840221,-3666.72609747,0.00025,2]
[321398039,1712131840265,-617.793995,0.00025,2]
[321398040,1712131840303,-29438.84971713,0.00025,2]
[321398076,1712131842905,-614.5285816,0.00025,2]
[321398078,1712131843116,-33056.61,0.00025,2]
[321398164,1712131846976,-155.0,0.00024998,2]
[321398165,1712131846986,-500.0,0.00024999,2]
[321398166,1712131846995,-1260.38535822,0.00024999,2]
[321398167,1712131847163,-130.52324535,0.00024999,2]
[321398168,1712131847174,-589.31805296,0.00025,2]
[321398169,1712131847202,-1021.0878699,0.00025,2]
[321398170,1712131851768,363.14671547,0.00019999,2]
[321398171,1712131866564,316.10255782,0.00023748,7]
[321398172,1712132310389,500.0,0.00023999,2]
[321398173,1712132421227,1299.62,0.00023999,2]
[321398174,1712132452316,150.0,0.00024999,10]
[321398175,1712132461111,-531.25844407,0.00024699,2]
[321398176,1712132461134,-500.0,0.00024699,2]
[321398177,1712132461156,-159.04134173,0.000247,2]
[321398178,1712132461178,-800.0,0.000248,2]
[321398179,1712132461200,-500.0,0.000248,2]
[321398180,1712132461223,-803.825,0.00024893,2]
[321398181,1712132461245,-9705.8752142,0.000249,2]
[321398187,1712132751305,8918.4993531,0.00025,15]
[321398188,1712132850112,-500.0,0.00024381,2]
[321398189,1712132850134,-258.72,0.00024382,2]
[321398190,1712132850154,-3591.48882073,0.00024874,2]
[321398197,1712133031907,-500.0,0.00024874,2]
[321398198,1712133031917,-151.15349028,0.00024875,2]
[321398199,1712133031926,-19.30463601,0.000249,2]
[321398200,1712133031965,-286.18192272,0.000249,2]
[321398201,1712133032079,-227.38274127,0.000249,2]
[321398202,1712133032091,-951.9010283,0.000249,2]
[321398203,1712133032100,-497.64643951,0.000249,2]
[321398204,1712133032110,-90.24869276,0.00024993,2]
[321398205,1712133032122,-59.75130724,0.00024993,2]
[321398206,1712133032131,-374.58605887,0.00024994,2]
[321398207,1712133032156,-125.41394113,0.00024994,2]
[321398208,1712133032166,-503.39179663,0.00024994,2]
[321398209,1712133032175,-373.90520822,0.00024994,2]
[321398210,1712133032252,-221.20792233,0.00024994,2]
[321398211,1712133032262,-166.30308458,0.00024994,2]
[321398226,1712133038063,-333.69691542,0.00024994,2]
[321398227,1712133038072,-500.0,0.00024994,2]
[321398228,1712133038081,-500.0,0.00024994,2]
[321398229,1712133038091,-18514.30308458,0.00024995,2]
[321398230,1712133038130,-46.35404554,0.00024995,2]
[321398231,1712133038168,-2947.06346468,0.00024995,2]
[321398232,1712133038211,-26505.406667,0.00024995,2]
[321398233,1712133038221,-1823.3715528,0.00024995,2]
[321398234,1712133038230,-8644.9904083,0.00024995,2]
[321398235,1712133038240,-1795.50469135,0.00024998,2]
[321398236,1712133038249,-181.60866014,0.00024998,2]
[321398237,1712133038260,-6710.9835364,0.00024998,2]
[321398238,1712133038270,-217.03101893,0.00024998,2]
[321398239,1712133038280,-156.60898107,0.00024998,2]
[321398240,1712133038290,-155.0,0.00024999,2]
[321398241,1712133038299,-155.39379797,0.00024999,2]
[321398243,1712133038309,-499.99,0.00024999,2]
[321398244,1712133038320,-1332.95407842,0.00024999,2]
[321398245,1712133038330,-150.99,0.00024999,2]
[321398246,1712133038341,-50000.0,0.00025,2]
[321398247,1712133038350,-50000.0,0.00025,2]
[321398248,1712133038360,-50000.0,0.00025,2]
[321398249,1712133038370,-50000.0,0.00025,2]
[321398250,1712133038379,-50000.0,0.00025,2]
[321398251,1712133038390,-151.0,0.00025,2]
[321398252,1712133038400,-282.24979189,0.00025,2]
[321398253,1712133038410,-2439628.10511998,0.00025,2]
[321398254,1712133038439,-19930.19183999,0.00025,2]
[321398282,1712133039986,-381.19499999,0.00025,2]
[321398283,1712133040404,-6742.11273848,0.00025,2]
[321398292,1712133042912,-12884.21189877,0.00025,2]
[321398293,1712133043079,-1954.65171941,0.00025,2]
[321398294,1712133043095,-474.33092222,0.00025,2]
[321398295,1712133043106,-1349.82702953,0.00025,2]
[321398297,1712133043360,-1277.41432515,0.00024999,2]
[321398299,1712133043370,-26709.94427081,0.00025,2]
[321398306,1712133045967,-4764.43169975,0.00025,2]
[321398307,1712133045979,-826.22776422,0.00025,2]
[321399155,1712133371219,150.0,0.00024999,10]
[321399156,1712133374107,287.83,0.00022054,2]
[321399157,1712133381133,1859.86,0.00023922,2]
[321399158,1712133392528,329.53273869,0.00023929,2]
[321399159,1712133396394,550.0,0.00025,3]
[321399160,1712133397468,600.0,0.00027,3]
[321399161,1712133417530,696.25956514,0.00023922,2]
[321399162,1712133417554,7530.21748987,0.00023922,2]
[321399163,1712133452678,3982.48504465,0.00023871,2]
[321399164,1712133452704,11512.70253452,0.00023871,2]
[321399165,1712133452727,8404.81242083,0.00023871,2]
[321399166,1712133539869,1183.5,0.00023871,2]
[321399167,1712133591665,716.87,0.00023898,2]
[321399169,1712133620851,472.32,0.0002385,2]
[321399170,1712133713880,167.1,0.00023784,2]
[321399171,1712133813785,342.13418829,0.00024002,2]
[321399172,1712133825197,225.9659254,0.00024002,2]
[321399173,1712133825220,274.0340746,0.00024002,2]
[321399174,1712133827317,1242.65245938,0.00024002,2]
[321399175,1712133830707,1056.94779048,0.00024002,2]
[321399176,1712133833888,155.0,0.00024002,2]
[321399177,1712133835543,155.0,0.00024002,2]
[321399178,1712133844326,830.89,0.00023951,2]
[321399179,1712133853089,994.23,0.00023951,2]
[321399180,1712133873219,2247.36168458,0.00024002,2]
[321399181,1712133874439,273.43,0.00022074,2]
[321399182,1712133874470,492.25,0.00023992,2]
[321399183,1712133905763,500.0,0.00024002,2]
[321399185,1712133949291,1384.38202857,0.00024002,2]
[321399186,1712133951513,1906.52449691,0.00023951,2]
[321399187,1712133951537,11512.70253452,0.00023951,2]
[321399188,1712133951563,1172.06368008,0.00023951,2]
[321399189,1712133951586,1998.94252704,0.00023951,2]
[321399190,1712133951609,1998.94252704,0.00023951,2]
[321399191,1712133951631,832.0,0.00023951,2]
[321399192,1712134039151,-155.0,0.00023947,2]
[321399193,1712134039171,-500.0,0.00023948,2]
[321399194,1712134039191,-450.0,0.00023949,2]
[321399195,1712134039212,-3947.54657739,0.0002395,2]
[321399204,1712134232216,-500.0,0.00023849,2]
[321399205,1712134232225,-163.82159727,0.0002385,2]
[321399206,1712134232234,-150.0,0.00023949,2]
[321399207,1712134232244,-10587.55758109,0.0002395,2]
[321399208,1712134232253,-5896.27731956,0.0002395,2]
[321399209,1712134232263,-4478.82423441,0.00023951,2]
[321399210,1712134232272,-622.14,0.00024014,2]
[321399211,1712134232281,-163.82159723,0.00024113,2]
[321399212,1712134232290,-161.54,0.00024172,2]
[321399213,1712134232300,-2314.83,0.00024206,2]
[321399214,1712134232309,-1387.26,0.00024236,2]
[321399215,1712134232319,-720.12,0.00024318,2]
[321399216,1712134232329,-273.43,0.00024338,2]
[321399217,1712134232340,-499.99,0.00024338,2]
[321399218,1712134232349,-163.82159723,0.00024375,2]
[321399219,1712134232358,-252.67489732,0.00024498,2]
[321399220,1712134232367,-420.87,0.00024498,2]
[321399221,1712134232376,-163.82159723,0.00024638,2]
[321399222,1712134232385,-201.21965119,0.00024658,2]
[321399223,1712134232394,-252.35542732,0.00024748,2]
[321399224,1712134232403,-800.0,0.000248,2]
[321399225,1712134232412,-500.0,0.000248,2]
[321399226,1712134232422,-197.41237988,0.00024874,2]
[321399227,1712134232431,-366.67259892,0.00024874,2]
[321399228,1712134232442,-155.0,0.00024874,2]
[321399229,1712134232451,-359.97775389,0.00024874,2]
[321399230,1712134232460,-591.88,0.000249,2]
[321399231,1712134232469,-153.89456252,0.000249,2]
[321399232,1712134232479,-2448.7744273,0.000249,2]
[321399233,1712134232488,-403.80056948,0.000249,2]
[321399234,1712134232497,-872.57594259,0.000249,2]
[321399235,1712134232507,-163.82159723,0.000249,2]
[321399236,1712134232516,-873.03515097,0.0002492,2]
[321399237,1712134232525,-393.24649561,0.00024989,2]
[321399238,1712134232535,-416.09748673,0.00024998,2]
[321399239,1712134232544,-424.74131708,0.00024998,2]
[321399240,1712134232554,-238.1091483,0.00024998,2]
[321399241,1712134232564,-155.78534616,0.00024998,2]
[321399242,1712134232573,-368.06573771,0.00024998,2]
[321399243,1712134232583,-542.49680733,0.00024998,2]
[321399244,1712134232593,-235.35674052,0.00024998,2]
[321399245,1712134232602,-163.31261407,0.00024998,2]
[321399246,1712134232612,-155.70791407,0.00024998,2]
[321399247,1712134232621,-184.48839028,0.00024998,2]
[321399248,1712134232631,-157.09859321,0.00024998,2]
[321399249,1712134232640,-180.54937549,0.00024998,2]
[321399250,1712134232650,-155.0,0.00024998,2]
[321399251,1712134232659,-156.62940369,0.00024998,2]
[321399252,1712134232668,-228.1843205,0.00024998,2]
[321399253,1712134232678,-222.71932817,0.00024998,2]
[321399254,1712134232688,-176.89732879,0.00024998,2]
[321399255,1712134232698,-386.4614846,0.00024998,2]
[321399256,1712134232707,-273.49494552,0.00024998,2]
[321399257,1712134232717,-155.60137307,0.00024998,2]
[321399258,1712134232726,-312.22591379,0.00024998,2]
[321399259,1712134232735,-273.34651931,0.00024998,2]
[321399260,1712134232745,-304.30217688,0.00024998,2]
[321399261,1712134232754,-174.12198599,0.00024998,2]
[321399262,1712134232763,-210.24002537,0.00024998,2]
[321399263,1712134232773,-221.41485105,0.00024998,2]
[321399264,1712134232782,-155.0,0.00024998,2]
[321399265,1712134232791,-350.98219182,0.00024998,2]
[321399266,1712134232801,-244.7203746,0.00024998,2]
[321399267,1712134232810,-155.71711413,0.00024998,2]
[321399268,1712134232819,-253.75395551,0.00024998,2]
[321399269,1712134232828,-177.38140188,0.00024998,2]
[321399270,1712134232839,-321.67183798,0.00024998,2]
[321399271,1712134232854,-163.53190374,0.00024998,2]
[321399272,1712134232866,-313.09081825,0.00024998,2]
[321399274,1712134232877,-260.9776037,0.00024998,2]
[321399276,1712134232886,-294.1892487,0.00024998,2]
[321399278,1712134232897,-155.37093796,0.00024998,2]
[321399280,1712134232905,-280.09906556,0.00024998,2]
[321399282,1712134232915,-155.86890055,0.00024998,2]
[321399283,1712134232925,-291.29810648,0.00024998,2]
[321399284,1712134232936,-327.54700043,0.00024998,2]
[321399285,1712134232946,-155.49430658,0.00024998,2]
[321399286,1712134232956,-406.88460765,0.00024998,2]
[321399287,1712134232968,-173.19731869,0.00024998,2]
[321399288,1712134232979,-503.45588954,0.00024998,2]
[321399289,1712134232990,-203.42004941,0.00024998,2]
[321399290,1712134233001,-155.36658318,0.00024998,2]
[321399291,1712134233010,-155.26815259,0.00024998,2]
[321399292,1712134233020,-565.42496208,0.00024998,2]
[321399293,1712134233032,-283.99288097,0.00024998,2]
[321399294,1712134233043,-236.76144755,0.00024998,2]
[321399295,1712134233054,-164.96759719,0.00024998,2]
[321399296,1712134233064,-1173.02292292,0.00024999,2]
[321399297,1712134233074,-434.94624148,0.00024999,2]
[321399298,1712134233086,-408.43400375,0.00024999,2]
[321399299,1712134233096,-215.48426085,0.00024999,2]
[321399300,1712134233107,-155.63091122,0.00024999,2]
[321399301,1712134233117,-1481.49786274,0.00024999,2]
[321399302,1712134233128,-156.66160258,0.00024999,2]
[321399303,1712134233139,-156.66801285,0.00024999,2]
[321399304,1712134233150,-239.7915044,0.00024999,2]
[321399305,1712134233162,-464.63554701,0.00024999,2]
[321399306,1712134233172,-155.0,0.00024999,2]
[321399307,1712134233182,-182.61324904,0.00024999,2]
[321399308,1712134233192,-155.000001,0.00024999,2]
[321399309,1712134233203,-249.14675128,0.00024999,2]
[321399310,1712134233212,-1224.18872827,0.00024999,2]
[321399311,1712134233222,-500.0,0.00024999,2]
[321399312,1712134233232,-624.62494707,0.00024999,2]
[321399313,1712134233242,-6852.85704574,0.00025,2]
[321399314,1712134233292,-7761.1169554,0.00025,2]
[321399315,1712134233306,-35386.02599886,0.00025,2]
[321399316,1712134233315,-31204.97400114,0.00025,2]
[321399317,1712134233349,-815.38936929,0.00025,2]
[321399318,1712134233378,-325.42581135,0.00025,2]
[321399319,1712134233408,-426.42497301,0.00025,2]
[321399340,1712134238122,-1173.1808646,0.00024999,2]
[321399341,1712134238132,-17227.78584521,0.00025,2]
[321399342,1712134238141,-50000.0,0.00025,2]
[321399343,1712134238151,-50000.0,0.00025,2]
[321399344,1712134238160,-50000.0,0.00025,2]
[321399345,1712134238169,-50000.0,0.00025,2]
[321399346,1712134238179,-50000.0,0.00025,2]
[321399347,1712134238188,-50000.0,0.00025,2]
[321399348,1712134238197,-271.66898394,0.00025,2]
[321399349,1712134238206,-2120955.46942623,0.00025,2]
[321399350,1712134238234,-351.55383579,0.00025,2]